[Event "13th Asrian Memorial 2022"]
[Site "Yerevan"]
[Date "2022.06.13"]
[Round "7.3"]
[White "Petrosian, Tigran L."]
[Black "Babujian Levon"]
[Result "0-1"]
[ECO "A00"]
[WhiteElo "2553"]
[BlackElo "2430"]
[Annotator "TA"]
[PlyCount "98"]
[EventDate "2022.06.07"]
[EventType "swiss"]
[EventCountry "ARM"]
[SourceTitle "playchess.com"]
[Source "ChessBase"]
[SourceQuality "1"]
[TimeControl "40/5400+30:1800+30"]

{[%evp 9,98,41,49,43,42,17,16,16,22,19,22,14,22,12,13,17,12,8,20,0,0,-12,-1,-5,0,0,0,-4,-4,-6,-4,-10,-14,-159,-152,-173,-168,-169,-177,-174,-161,-175,-166,-181,-179,-165,-143,-145,-139,-126,-137,-140,-118,-222,-225,-302,-262,-377,-358,-363,-364,-6033,-5949,-1910,-204,-621,-560,-29952,-29951,-29949,-7093,-29970,-29970,-29974,-29974,-29974,-29975,-29974,-29975,-29985,-29986,-29986,-29985,-29985,-29986,-29986,-29987,-29987,-29988,-29984,-29972]} 1. Nc3 {[%emt 0:09:33]} e5 {[%emt 0:00:37]} 2. Nf3 {[%emt 0:00:09]} Nc6 {[%emt 0:00:27]} 3. d4 {[%emt 0:08:38]} exd4 {[%emt 0:00:26]} 4. Nxd4 {[%emt 0:01:53]} d5 {[%emt 0:03:10]} 5. e4 {[%emt 0:03:37]} dxe4 {[%emt 0:04:28]} 6. Bb5 {[%emt 0:18:45] A00: Irregular Openings.} Bd7 {[%emt 0:02:25]} 7. Bxc6 {[%emt 0:02:11]} Bxc6 {[%emt 0:02:20]} 8. Nxc6 {[%emt 0:02:39] The position is equal.} Qxd1+ {[%emt 0:00:37]} 9. Kxd1 {[%emt 0:00:07] Hoping for Ne5.} bxc6 {[%emt 0:00:26]} 10. Nxe4 {[%emt 0:00:05] [#]} O-O-O+ $146 {[%emt 0:00:16]} ({Predecessor:} 10... Rd8+ 11. Ke2 Bd6 12. Be3 Be5 13. c3 Nf6 14. Nxf6+ Bxf6 15. Bxa7 O-O 16. Rhe1 Rfe8+ {1-0 (52) Wallinger,N (1190)-Maklakova,D (1111) Mureck 2021}) 11. Ke2 {[%emt 0:01:12]} f5 {[%emt 0:02:03]} 12. Ng3 {[%emt 0:15:38]} g6 {[%emt 0:01:18]} 13. Bg5 {[%emt 0:01:52]} Be7 {[%emt 0:04:41]} 14. Bxe7 {[%emt 0:01:04]} Nxe7 {[%emt 0:00:06][%cal Bg8e7,Be7d5,Bd5b4,Bb4d3,Bd3f2][%mdl 32]} 15. Rhd1 {[%emt 0:01:00]} Nd5 {[%emt 0:00:08]} 16. Kf1 {[%emt 0:06:49]} Nb4 {[%emt 0:02:31]} 17. c3 {[%emt 0:00:12]} Nd3 {[%emt 0:00:19]} 18. Rab1 {[%emt 0:06:36]} c5 {[%emt 0:00:30]} 19. b3 {[%emt 0:05:55]} Rd6 {[%emt 0:01:23]} 20. Rd2 {[%emt 0:07:09]} Rhd8 {[%emt 0:00:10][%cal Oc5c4]} 21. Rbd1 {[%emt 0:01:03] [#]} (21. Ne2 $11 {remains equal.}) 21... Nxf2 $1 $17 {[%emt 0:01:11][%mdl 512] Black is more active.} 22. Rxd6 {[%emt 0:01:23]} Nxd1 {[%emt 0:00:06]} 23. Rxd8+ {[%emt 0:00:10]} Kxd8 {[%emt 0:00:03][%mdl 4096] Endgame KN-KN} 24. Ne2 {[%emt 0:01:16]} Kd7 {[%emt 0:00:57]} 25. Ke1 {[%emt 0:00:04]} Ne3 {[%emt 0:00:11]} 26. Kf2 {[%emt 0:01:16]} Ng4+ {[%emt 0:02:32]} 27. Kg3 {[%emt 0:00:06]} Kd6 {[%emt 0:01:14]} 28. h3 {[%emt 0:00:15]} Nf6 {[%emt 0:02:52]} 29. Kf4 {[%emt 0:00:22]} h6 $1 {[%emt 0:00:36]} 30. c4 {[%emt 0:01:51]} Ke6 {[%emt 0:00:38]} 31. Nc1 {[%emt 0:01:43]} (31. Nc3 $17 {might work better.}) 31... g5+ $19 {[%emt 0:00:24]} 32. Ke3 {[%emt 0:00:05]} f4+ {[%emt 0:00:11]} 33. Kf3 {[%emt 0:00:04]} (33. Kd3 $142) 33... Ke5 {[%emt 0:00:54]} 34. Nd3+ {[%emt 0:00:08]} Kd4 {[%emt 0:00:05]} 35. Nxf4 {[%emt 0:00:04]} (35. Nf2 Kc3 36. Ke2) 35... gxf4 {[%emt 0:00:06]} 36. Kxf4 {[%emt 0:00:04] KN-KP} h5 $2 {[%emt 0:02:17]} (36... a5 37. g4 Kc3) 37. Kf5 $2 {[%emt 0:01:03]} (37. Kg5 Ke5 38. Kg6) 37... Ne4 {[%emt 0:00:07]} 38. g4 {[%emt 0:00:12] [#]} hxg4 {[%emt 0:00:08]} 39. hxg4 {[%emt 0:00:07]} a5 {[%emt 0:00:37]} 40. a3 {[%emt 0:00:00]} Nd2 {[%emt 0:00:00] Black mates.} 41. Kf4 {[%emt 0:03:24] [#]} a4 $1 {[%emt 0:09:36]} 42. bxa4 {[%emt 0:00:03]} Nxc4 {[%emt 0:00:03] KN-K3P} 43. g5 {[%emt 0:00:08]} Ne5 {[%emt 0:00:12]} 44. Kg3 {[%emt 0:02:38]} c4 {[%emt 0:01:00]} 45. Kf2 {[%emt 0:00:09]} Kd3 {[%emt 0:00:52]} 46. a5 {[%emt 0:00:06]} c3 {[%emt 0:00:29]} 47. a6 {[%emt 0:00:09]} c2 {[%emt 0:00:09]} 48. a7 {[%emt 0:00:04]} c1=Q {[%emt 0:00:04]} 49. a8=Q {[%emt 0:00:04]} Qe3+ {[%emt 0:00:10] Weighted Error Value: White=0.86/Black=0.20 (precise)} 0-1

[Event "13th Asrian Memorial 2022"]
[Site "Yerevan"]
[Date "2022.06.13"]
[Round "7.4"]
[White "Davtyan, Artur"]
[Black "Shahinyan, David"]
[Result "1-0"]
[ECO "A85"]
[WhiteElo "2488"]
[BlackElo "2479"]
[Annotator "TA"]
[PlyCount "123"]
[EventDate "2022.06.07"]
[EventType "swiss"]
[EventCountry "ARM"]
[SourceTitle "playchess.com"]
[Source "ChessBase"]
[SourceQuality "1"]
[TimeControl "40/5400+30:1800+30"]

{[%evp 9,123,0,26,-12,-12,-2,0,0,0,-23,2,5,4,3,55,43,45,39,42,6,129,74,85,79,81,81,91,83,114,110,121,68,152,150,151,170,155,155,148,129,141,24,225,0,0,0,225,236,209,215,244,244,314,267,298,279,297,338,324,309,254,205,526,517,438,0,8,29,37,0,123,89,4470,4468,3889,3783,3695,3534,3275,3205,2937,2952,2104,2410,2377,2228,1947,1972,1693,968,7105,6824,2619,1745,9881,10678,6045,5533,5995,5284,5114,4602,4706,3413,1860,1664,29980,29981,29980,29979,29978,29979,29981,29982,29981,29982]} 1. d4 {[%emt 0:01:11]} e6 {[%emt 0:00:44]} 2. c4 {[%emt 0:01:04]} f5 {[%emt 0:00:11]} 3. Nc3 {[%emt 0:01:16]} Nf6 {[%emt 0:00:51]} 4. Bf4 {[%emt 0:00:39]} Bb4 {[%emt 0:02:52]} 5. Qc2 {[%emt 0:03:39]} b6 {[%emt 0:01:22]} 6. Nf3 {[%emt 0:06:53] A85: Dutch Defence: 2 c4 Nf6 3 Nc3.} Bb7 {[%emt 0:02:18]} 7. e3 {[%emt 0:01:31]} Bxc3+ {[%emt 0:03:24]} 8. Qxc3 {[%emt 0:11:59] The position is equal.} Ne4 {[%emt 0:04:23]} 9. Qc1 {[%emt 0:00:52] [#]} d6 $146 {[%emt 0:03:05]} (9... g5 $5 {[%cal Rg5f4]} 10. Bg3 d6 $11) ({Predecessor:} 9... O-O 10. Bd3 d6 11. O-O Nd7 12. Bxe4 Bxe4 13. Ng5 Qe8 14. Nxe4 fxe4 15. Qc2 Qg6 {0-1 (30) Galvez Alvarado,N (1116)-Escobar Villota,D (1346) Chess.com INT 2020}) 10. Nd2 {[%emt 0:02:23]} Nd7 {[%emt 0:04:12]} 11. Nxe4 {[%emt 0:02:11]} fxe4 {[%emt 0:00:43]} (11... Bxe4 $11 12. f3 Bb7) 12. Be2 {[%emt 0:01:28]} Qf6 {[%emt 0:03:23]} 13. Qc3 {[%emt 0:04:03]} O-O {[%emt 0:03:04]} 14. O-O-O {[%emt 0:07:16]} b5 {[%emt 0:09:19]} (14... Rae8 $11 {remains equal.}) 15. c5 {[%emt 0:14:54]} ({Better is} 15. Qa5 $1 {[%cal Ra5c7]} Nb6 16. Qxb5) 15... Bd5 {[%emt 0:08:10]} 16. Bxb5 {[%emt 0:07:28]} c6 {[%emt 0:02:18]} 17. Be2 {[%emt 0:02:47]} (17. Bxd6 $6 cxb5 18. Bxf8 Rxf8 $11) 17... dxc5 {[%emt 0:01:24]} 18. dxc5 {[%emt 0:01:15]} e5 {[%emt 0:00:04]} 19. Bg3 {[%emt 0:00:21]} Qe7 {[%emt 0:00:04]} 20. Bc4 {[%emt 0:07:18]} (20. f3 $1 $16) 20... Nxc5 {[%emt 0:19:48]} (20... Qxc5 $14 21. Kb1 Bxc4 22. Rxd7 Rad8 23. Rxd8 Rxd8) 21. Rxd5 $16 {[%emt 0:00:24]} (21. Bxe5 $6 Qe6 22. Bxd5 cxd5 23. Qxc5 Rac8 $14) (21. Bxd5+ cxd5 22. Rxd5 Nd3+ 23. Kb1 (23. Rxd3 exd3 24. Qxd3 Rfd8 $15) 23... Rac8 $11) 21... cxd5 {[%emt 0:01:20]} 22. Bxd5+ {[%emt 0:00:06]} Kh8 {[%emt 0:00:03]} 23. Bxa8 {[%emt 0:00:23]} Rxa8 {[%emt 0:00:03]} 24. Kb1 {[%emt 0:01:44]} Nd3 {[%emt 0:01:11] [#]} 25. Rd1 {[%emt 0:08:48]} (25. f3 $1 $16) 25... Qb7 {[%emt 0:07:14]} (25... h5 $11) 26. Qb3 $2 {[%emt 0:06:20]} (26. Bxe5 $18 {Strongly threatening Qa5.} Nxf2 27. Rf1) 26... Qc7 $11 {[%emt 0:03:16]} 27. Qc3 $2 {[%emt 0:00:01]} (27. Qc2 $11 Qb7 28. Qb3) 27... Qb7 $18 {[%emt 0:02:21]} 28. Bxe5 $40 {[%emt 0:00:28][%mdl 128] White goes for the king.} Rc8 {[%emt 0:04:09]} 29. Qa5 {[%emt 0:00:00]} (29. Bxg7+ Kg8 30. Qf6 Qc7 $11) 29... Qf7 {[%emt 0:02:12]} 30. Bc3 {[%emt 0:01:08]} Qxf2 {[%emt 0:00:58]} 31. Qxa7 {[%emt 0:00:06][%csl Gc3][%cal Ra7g7]} Qxg2 {[%emt 0:01:18]} 32. a4 {[%emt 0:00:24]} h6 {[%emt 0:01:03]} 33. Qb7 {[%emt 0:04:36]} Rc4 {[%emt 0:01:53]} 34. Qb3 {[%emt 0:01:24]} (34. a5 Kh7 $16) 34... Rc6 {[%emt 0:01:08]} 35. a5 {[%emt 0:00:25] Threatens to win with Qb7.} ({Resist} 35. Qb7 $6 Rc4 36. Qb5 (36. a5 Kh7 $16) 36... Rc8 $16) 35... Rg6 $2 {[%emt 0:02:12]} (35... Kh7 {is tougher.} 36. Qb7 Rg6) 36. Qf7 {[%emt 0:00:38]} Kh7 {[%emt 0:04:20]} 37. Rf1 $2 {[%emt 0:00:49]} (37. Qf5 $18) 37... Rg5 {[%emt 0:01:15]} 38. a6 {[%emt 0:00:29] Black must now prevent a7.} Rb5 {[%emt 0:01:07][%cal Rb5b2]} 39. Ka1 {[%emt 0:00:45] Chess con chili.} Rxb2 {[%emt 0:00:44]} (39... Ra5+ $1 $11 40. Kb1 Rxa6) 40. Qf5+ {[%emt 0:00:00] Black is now going downhill.} Kh8 $2 {[%emt 0:00:00][%mdl 8192] [#]} (40... Kg8 $16 41. Qf7+ Kh7) 41. Bxg7+ $1 {[%emt 0:02:33][%mdl 512]} Qxg7 {[%emt 0:01:35]} 42. Qf8+ {[%emt 0:00:09]} Qxf8 {[%emt 0:00:26]} 43. Rxf8+ {[%emt 0:00:07][%mdl 4096] Endgame KRN-KR} Kg7 {[%emt 0:00:01]} 44. a7 {[%emt 0:00:19]} Kxf8 {[%emt 0:00:33]} 45. a8=Q+ {[%emt 0:00:09] KQ-KRN} Kg7 {[%emt 0:00:27]} 46. Qxe4 {[%emt 0:00:29]} Rd2 {[%emt 0:00:01]} 47. Qd4+ {[%emt 0:08:31]} Kg6 {[%emt 0:02:51]} 48. Qc3 {[%emt 0:00:25]} Rd1+ {[%emt 0:01:00]} 49. Ka2 {[%emt 0:00:04]} Kh5 {[%emt 0:04:18]} 50. Qa5+ {[%emt 0:00:26]} Kg6 {[%emt 0:00:03]} 51. e4 {[%emt 0:04:58] Threatening mate with Qf5+.} Kf6 {[%emt 0:03:24]} 52. Qf5+ {[%emt 0:00:24]} Ke7 {[%emt 0:00:06]} 53. Qh7+ {[%emt 0:00:04]} Kd8 {[%emt 0:01:08]} 54. Qxh6 {[%emt 0:00:27]} Kc7 {[%emt 0:01:15]} 55. Qg7+ {[%emt 0:00:12]} Kc6 {[%emt 0:01:44]} 56. Qg6+ {[%emt 0:00:25]} Kb7 {[%emt 0:00:59]} 57. Qf7+ {[%emt 0:00:26]} Ka6 {[%emt 0:00:35]} 58. Qc4+ {[%emt 0:00:41] White mates.} Ka5 {[%emt 0:00:19]} 59. Qd5+ {[%emt 0:00:08]} Ka6 {[%emt 0:00:04]} 60. Ka3 {[%emt 0:01:19]} Ra1+ {[%emt 0:03:31]} 61. Kb3 {[%emt 0:00:01]} Rb1+ {[%emt 0:00:15]} 62. Kc2 {[%emt 0:00:57] Weighted Error Value: White=0.37/Black=0.60} 1-0

[Event "13th Asrian Memorial 2022"]
[Site "Yerevan"]
[Date "2022.06.13"]
[Round "7.5"]
[White "Hayrapetyan, Hovik"]
[Black "Mahdavi, Reza"]
[Result "1-0"]
[ECO "E66"]
[WhiteElo "2484"]
[BlackElo "2303"]
[Annotator "TA"]
[PlyCount "154"]
[EventDate "2022.06.07"]
[EventType "swiss"]
[EventCountry "ARM"]
[SourceTitle "playchess.com"]
[Source "ChessBase"]
[SourceQuality "1"]
[TimeControl "40/5400+30:1800+30"]

{[%evp 19,154,27,22,24,26,14,21,26,14,14,33,0,15,24,0,-27,-15,-68,-52,-87,-96,-80,-98,-87,-71,-74,-89,-63,-71,-130,-127,-125,-89,-90,-96,-126,-125,-125,-129,-114,-101,-139,-91,-166,-99,-100,-90,-100,0,-62,-63,-91,-102,-89,-90,-110,-112,-92,-19,-19,0,0,0,0,0,0,0,0,15,36,14,19,56,56,58,56,57,38,47,47,56,56,56,56,56,56,58,65,168,160,192,181,304,304,323,317,293,286,539,535,565,471,566,479,801,800,766,678,810,802,1272,660,634,482,481,473,473,395,482,482,466,460,550,460,793,697,933,1128,978,791,29976,29976,29976,29977,29971,29956,29972]} 1. d4 {[%emt 0:00:05]} Nf6 {[%emt 0:00:06]} 2. c4 {[%emt 0:00:05]} g6 {[%emt 0:00:04]} 3. Nc3 {[%emt 0:00:27]} Bg7 {[%emt 0:00:03]} 4. Nf3 {[%emt 0:01:03]} d6 {[%emt 0:00:06]} 5. g3 {[%emt 0:00:06]} O-O {[%emt 0:00:12]} 6. Bg2 {[%emt 0:00:04]} c5 {[%emt 0:00:05]} 7. O-O {[%emt 0:01:17]} Nc6 {[%emt 0:00:02]} 8. d5 {[%emt 0:00:24]} Na5 {[%emt 0:00:02]} 9. Nd2 {[%emt 0:00:05]} a6 {[%emt 0:00:03]} 10. Qc2 {[%emt 0:00:11]} b5 {[%emt 0:00:06]} 11. cxb5 {[%emt 0:07:26] E66: King's Indian: Fianchetto: 6...c5 7 0-0 Nc6 8 d5.} axb5 {[%emt 0:01:45]} 12. Nxb5 {[%emt 0:00:01]} Qb6 {[%emt 0:00:02]} 13. Nc3 {[%emt 0:00:01] The position is equal.} Bf5 {[%emt 0:00:01]} 14. e4 {[%emt 0:01:00]} Bc8 {[%emt 0:00:07]} 15. h3 {[%emt 0:07:44]} Ba6 {[%emt 0:00:14]} 16. Rd1 {[%emt 0:03:09]} Nd7 {[%emt 0:14:02]} 17. Nf3 {[%emt 0:02:32] [#]} Qb4 $146 {[%emt 0:14:05][%mdl 1024] Black has compensation.} ({Predecessor:} 17... Nc4 18. Rb1 Qb4 19. Bf1 Rfb8 20. Bxc4 Qxc4 21. Bg5 Bxc3 22. bxc3 Qe2 23. Nd2 Ne5 24. Rxb8+ Rxb8 {0-1 (30) Pantsulaia,L (2614)-Ding,L (2659) Qinhuangdao 2011}) 18. Ne1 {[%emt 0:37:56]} (18. h4 $11) 18... Rfb8 $15 {[%emt 0:03:10]} 19. Bf3 {[%emt 0:07:13]} Nc4 {[%emt 0:18:00][%cal Rc4b2]} 20. Nd3 {[%emt 0:01:03]} Qa5 {[%emt 0:01:47][%cal Oc4a3] White must now prevent ...Na3!} 21. a3 {[%emt 0:16:52] [#]} Nxb2 $1 {[%emt 0:05:00]} 22. Bxb2 {[%emt 0:03:15]} Bxd3 {[%emt 0:00:15]} ({Much worse is} 22... Rxb2 23. Nxb2 (23. Qxb2 Bxc3 24. Qc1 Bxa1 $17) 23... Qxc3 24. Qxc3 Bxc3 25. Ra2 $11) 23. Rxd3 {[%emt 0:01:02] Hoping for Re3.} Ne5 {[%emt 0:00:01]} 24. Re3 {[%emt 0:01:34]} (24. Rad1 $142 Nxd3 25. Rxd3) 24... Nc4 $17 {[%emt 0:00:30][%csl LRb2,LRe3]} 25. Ra2 {[%emt 0:01:40][%cal Ob2a1]} Nxe3 {[%emt 0:01:36]} 26. fxe3 {[%emt 0:00:01] [#]} Rxb2 {[%emt 0:01:00]} 27. Rxb2 {[%emt 0:00:05] Threatens to win with Rb3.} (27. Qxb2 Bxc3) 27... Bxc3 {[%emt 0:00:07]} 28. Rb3 {[%emt 0:00:01]} Be5 {[%emt 0:00:10]} 29. Kf2 {[%emt 0:00:01] Prevents Qe1+.} Rc8 {[%emt 0:12:04]} 30. Qc4 {[%emt 0:00:58]} Qd2+ {[%emt 0:01:32]} ({Black should try} 30... Kg7 31. Be2 Qd2) 31. Be2 {[%emt 0:00:18]} (31. Qe2 $17 {was necessary.} Qc1 32. Qd1) 31... Rf8 {[%emt 0:00:40]} (31... f5 $19 32. Qd3 Qa2) 32. Qd3 {[%emt 0:01:36]} Qa2 {[%emt 0:00:55]} 33. Qb1 {[%emt 0:02:24]} Qd2 {[%emt 0:00:11]} 34. Qd3 {[%emt 0:00:06]} Qa5 {[%emt 0:01:25]} 35. Qa6 {[%emt 0:03:09]} Qd8 {[%emt 0:01:07]} 36. Kg2 {[%emt 0:01:09]} e6 {[%emt 0:02:44] And now ...Qg5 would win.} 37. h4 {[%emt 0:00:26] [#] Prevents Qg5.} g5 $1 {[%emt 0:01:47]} 38. h5 {[%emt 0:01:17]} g4 {[%emt 0:00:01]} ({Black should play} 38... exd5 $17 {...g4 is the strong threat.} 39. g4 dxe4) 39. dxe6 $1 $11 {[%emt 0:01:22]} fxe6 {[%emt 0:00:08]} 40. Bxg4 {[%emt 0:00:00]} Qf6 {[%emt 0:00:00] ( -> ...Qf2+)} 41. Qe2 {[%emt 0:01:53] Inhibits Qf2+.} c4 {[%emt 0:00:13]} 42. Rb1 {[%emt 0:01:06]} c3 {[%emt 0:00:11]} 43. a4 {[%emt 0:01:16]} ({Not} 43. Rf1 $2 Qxf1+ 44. Qxf1 Rxf1 45. Bxe6+ Kg7 $19) 43... d5 {[%emt 0:05:50]} 44. exd5 {[%emt 0:10:50]} exd5 {[%emt 0:00:02]} 45. Qf3 {[%emt 0:07:54]} Qxf3+ {[%emt 0:06:00]} 46. Bxf3 {[%emt 0:00:02][%mdl 4096] Endgame KRB-KRB} d4 {[%emt 0:00:01]} 47. exd4 {[%emt 0:00:01]} Bxd4 {[%emt 0:00:06]} 48. Rc1 {[%emt 0:01:56]} Rf5 {[%emt 0:02:11]} 49. g4 {[%emt 0:02:33]} Rc5 {[%emt 0:00:12]} 50. Bd1 {[%emt 0:01:41]} Be3 {[%emt 0:01:14]} 51. Rc2 {[%emt 0:00:23]} Bd2 {[%emt 0:00:11]} 52. Ra2 {[%emt 0:00:44]} Kg7 {[%emt 0:00:55]} 53. Kf3 {[%emt 0:00:21]} Kf6 {[%emt 0:05:49] [#] Black is on the road to losing.} (53... h6 $14) 54. Bc2 $1 $18 {[%emt 0:00:56]} Ra5 {[%emt 0:14:11]} 55. Bxh7 {[%emt 0:00:26]} Ke5 {[%emt 0:00:08]} (55... Kg5 {might work better.} 56. Bf5 Re5) 56. Bc2 {[%emt 0:00:06]} Kd4 {[%emt 0:00:16]} 57. Ra1 {[%emt 0:00:06]} Kc4 {[%emt 0:00:49]} 58. Ke4 {[%emt 0:02:22]} Kb4 $2 {[%emt 0:00:08]} (58... Rg5 59. h6 Rxg4+ 60. Kf3 Rf4+ 61. Kg2 Be3) 59. Rb1+ {[%emt 0:00:38]} Kc4 {[%emt 0:01:18]} 60. Rb6 {[%emt 0:01:38]} Ra8 {[%emt 0:01:41]} 61. Kf5 {[%emt 0:01:34]} Rf8+ {[%emt 0:00:22]} (61... Be3 $142) 62. Rf6 {[%emt 0:00:24]} Rh8 {[%emt 0:00:17]} 63. a5 {[%emt 0:00:35][%cal Ba4a5,Ba5a6][%mdl 32]} Be3 {[%emt 0:00:12]} 64. a6 {[%emt 0:00:14]} Rg8 {[%emt 0:00:11]} 65. Rg6 {[%emt 0:00:31]} Rf8+ {[%emt 0:00:12]} 66. Ke5 {[%emt 0:01:14]} Bd4+ {[%emt 0:00:21]} 67. Ke4 {[%emt 0:00:22] aiming for Bd3+.} Re8+ {[%emt 0:00:14]} 68. Kf4 {[%emt 0:01:52]} Re2 {[%emt 0:00:21]} 69. Rc6+ {[%emt 0:00:54]} Kd5 {[%emt 0:01:08]} 70. a7 $1 {[%emt 0:00:40]} Bxa7 {[%emt 0:00:20]} 71. Rxc3 {[%emt 0:00:01]} Rh2 {[%emt 0:02:52]} (71... Rf2+ $142 72. Kg5 Bd4) 72. Be4+ {[%emt 0:00:17]} Ke6 {[%emt 0:00:10]} 73. Bf5+ {[%emt 0:00:57]} Kd5 {[%emt 0:00:34]} 74. Rd3+ {[%emt 0:00:05]} Bd4 {[%emt 0:00:08]} 75. Kg5 {[%emt 0:00:07] White mates.} Ke5 {[%emt 0:00:28] [#]} 76. Rxd4 $1 {[%emt 0:00:32]} Kxd4 {[%emt 0:00:06]} 77. h6 {[%emt 0:00:03]} Kd5 {[%emt 0:00:54] Weighted Error Value: White=0.10 (very precise) /Black=0.21 (precise)} 1-0